lending/lending_fUSD_20240710
["ID","MTS","AMOUNT","RATE_DAILY","PERIOD"]
[331622695,1720585891757,-500.0,0.00013863,2]
[331622696,1720585891767,-879.3,0.00013863,2]
[331622697,1720585891777,-2288.26,0.00013863,2]
[331622698,1720585891787,-12798.62,0.00013863,2]
[331622699,1720585891796,-1631.03,0.00013863,2]
[331622700,1720585891805,-502.87,0.00013863,2]
[331622701,1720585891815,-500.0,0.00013863,2]
[331622702,1720585891825,-2170.04,0.00013863,2]
[331622703,1720585891834,-2051.37,0.00013863,2]
[331622704,1720585891844,-500.0,0.00013863,2]
[331622705,1720585891854,-1385.1,0.00013863,2]
[331622706,1720585891863,-500.0,0.00013863,2]
[331622707,1720585891873,-593.27,0.00013863,2]
[331622708,1720585891883,-1486.22,0.00013863,2]
[331622709,1720585891892,-929.8,0.00013863,2]
[331622710,1720585891901,-500.0,0.00013863,2]
[331622711,1720585891911,-1011.77,0.00013863,2]
[331622712,1720585891920,-2835.59,0.00013863,2]
[331622713,1720585891929,-2422.32,0.00013863,2]
[331622714,1720585891939,-1288.06,0.00013863,2]
[331622715,1720585891948,-500.0,0.00013863,2]
[331622716,1720585891957,-1665.35,0.00013863,2]
[331622717,1720585891967,-567.3,0.00013863,2]
[331622718,1720585891976,-786.37,0.00013863,2]
[331622719,1720585891989,-2291.84,0.00013863,2]
[331622720,1720585892332,-538.38,0.00013863,2]
[331622721,1720585892343,-500.0,0.00013863,2]
[331622722,1720585892353,-1711.43,0.00013863,2]
[331622723,1720585892363,-500.0,0.00013863,2]
[331622724,1720585892373,-1578.98,0.00013863,2]
[331622725,1720585892383,-500.0,0.00013863,2]
[331622726,1720585892392,-1520.43,0.00013863,2]
[331622727,1720585892402,-926.41,0.00013863,2]
[331622728,1720585892412,-2062.72,0.00013863,2]
[331622729,1720585892421,-909.33,0.00013863,2]
[331622730,1720585892431,-2030.76,0.00013863,2]
[331622731,1720585892441,-875.9,0.00013863,2]
[331622732,1720585892451,-1802.0,0.00013863,2]
[331622733,1720585892461,-577.5,0.00013863,2]
[331622734,1720585892471,-500.0,0.00013863,2]
[331622735,1720585892484,-2647.91,0.00013863,2]
[331622736,1720585892494,-500.0,0.00013863,2]
[331622737,1720585892503,-1255.67,0.00013863,2]
[331622738,1720585892512,-500.0,0.00013863,2]
[331622739,1720585892522,-1541.28,0.00013863,2]
[331622740,1720585892531,-500.0,0.00013863,2]
[331622741,1720585892540,-893.14,0.00013863,2]
[331622742,1720585892550,-692.92,0.00013863,2]
[331622743,1720585892559,-500.0,0.00013863,2]
[331622744,1720585892569,-500.0,0.00013863,2]
[331622745,1720585892578,-3297.15,0.00013863,2]
[331622746,1720585892587,-1291.69,0.00013863,2]
[331622747,1720585892598,-2756.77,0.00013863,2]
[331622748,1720585892607,-2371.95,0.00013863,2]
[331622749,1720585892617,-1208.98,0.00013863,2]
[331622750,1720585892627,-962.76,0.00013863,2]
[331622751,1720585892637,-1211.34,0.00013863,2]
[331622752,1720585892647,-2665.07,0.00013863,2]
[331622753,1720585892657,-745.66,0.00013863,2]
[331622754,1720585892667,-3041.67,0.00013863,2]
[331622755,1720585892677,-2848.4,0.00013863,2]
[331622756,1720585892687,-2312.36,0.00013863,2]
[331622757,1720585892696,-1809.12,0.00013863,2]
[331622758,1720585892707,-2816.01,0.00013863,2]
[331622759,1720585892717,-1266.82,0.00013863,2]
[331622760,1720585892729,-1442.9,0.00013863,2]
[331622761,1720585892741,-2469.24,0.00013863,2]
[331622762,1720585892751,-1615.77,0.00013863,2]
[331622763,1720585892760,-1772.4,0.00013863,2]
[331622764,1720585892769,-500.0,0.00013863,2]
[331622765,1720585892778,-3289.3,0.00013863,2]
[331622766,1720585892788,-2323.32,0.00013863,2]
[331622767,1720585892797,-2229.26,0.00013863,2]
[331622768,1720585892807,-973.14,0.00013863,2]
[331622769,1720585892816,-500.0,0.00013863,2]
[331622770,1720585892825,-662.43,0.00013863,2]
[331622771,1720585892835,-620.82,0.00013863,2]
[331622772,1720585892845,-597.87,0.00013863,2]
[331622773,1720585892854,-621.94,0.00013863,2]
[331622774,1720585892863,-564.52,0.00013863,2]
[331622775,1720585892873,-5170.51,0.00013863,2]
[331622776,1720585892883,-2161.39,0.00013863,2]
[331622777,1720585892892,-500.0,0.00013863,2]
[331622778,1720585892902,-2084.9,0.00013863,2]
[331622779,1720585892911,-583.46,0.00013863,2]
[331622780,1720585892921,-500.0,0.00013863,2]
[331622781,1720585892930,-500.0,0.00013863,2]
[331622782,1720585892939,-623.58,0.00013863,2]
[331622783,1720585892949,-1098.28,0.00013863,2]
[331622784,1720585892959,-500.0,0.00013863,2]
[331622785,1720585892968,-1922.09,0.00013863,2]
[331622786,1720585892981,-1751.9,0.00013863,2]
[331622787,1720585892990,-151.0,0.00013863,2]
[331622788,1720585893000,-3555.62,0.00013863,2]
[331622789,1720585893010,-151.0,0.00013863,2]
[331622790,1720585893019,-500.0,0.00013863,2]
[331622791,1720585893030,-151.0,0.00013863,2]
[331622792,1720585893039,-500.0,0.00013863,2]
[331622793,1720585893049,-1373.39,0.00013863,2]
[331622794,1720585893058,-670.26,0.00013863,2]
[331622795,1720585893068,-827.12,0.00013863,2]
[331622796,1720585893079,-609.95,0.00013863,2]
[331622797,1720585893088,-1039.64,0.00013863,2]
[331622798,1720585893098,-1293.89,0.00013863,2]
[331622799,1720585893108,-525.1,0.00013863,2]
[331622800,1720585893118,-2275.24,0.00013863,2]
[331622801,1720585893127,-500.0,0.00013863,2]
[331622802,1720585893137,-2227.83,0.00013863,2]
[331622803,1720585893148,-788.94,0.00013863,2]
[331622804,1720585893158,-1950.08,0.00013863,2]
[331622805,1720585893169,-500.0,0.00013863,2]
[331622806,1720585893180,-1593.0,0.00013863,2]
[331622807,1720585893192,-500.0,0.00013863,2]
[331622808,1720585893203,-670.17,0.00013863,2]
[331622809,1720585893215,-1064.21,0.00013863,2]
[331622810,1720585893225,-702.23,0.00013863,2]
[331622811,1720585893240,-1444.79,0.00013863,2]
[331622812,1720585893250,-500.0,0.00013863,2]
[331622813,1720585893260,-3622.95,0.00013863,2]
[331622814,1720585893270,-955.73,0.00013863,2]
[331622815,1720585893280,-500.0,0.00013863,2]
[331622816,1720585893290,-856.96,0.00013863,2]
[331622817,1720585893301,-821.2,0.00013863,2]
[331622818,1720585893311,-500.0,0.00013863,2]
[331622819,1720585893321,-500.0,0.00013863,2]
[331622820,1720585893330,-11149.98,0.00013863,2]
[331622821,1720585893340,-936.23,0.00013863,2]
[331622822,1720585893349,-711.36,0.00013863,2]
[331622823,1720585893360,-500.0,0.00013863,2]
[331622824,1720585893369,-1021.6,0.00013863,2]
[331622825,1720585893378,-891.23,0.00013863,2]
[331622826,1720585893388,-2577.26,0.00013863,2]
[331622827,1720585893398,-2073.98,0.00013863,2]
[331622828,1720585893407,-500.0,0.00013863,2]
[331622829,1720585893416,-671.65,0.00013863,2]
[331622830,1720585893426,-1493.58,0.00013863,2]
[331622831,1720585893436,-1303.96,0.00013863,2]
[331622832,1720585893446,-500.0,0.00013863,2]
[331622833,1720585893456,-500.0,0.00013863,2]
[331622834,1720585893466,-1604.62,0.00013863,2]
[331622835,1720585893476,-795.46,0.00013863,2]
[331622836,1720585893490,-624.36,0.00013863,2]
[331622837,1720585893499,-500.0,0.00013863,2]
[331622838,1720585893508,-4673.32,0.00013863,2]
[331622839,1720585893518,-500.0,0.00013863,2]
[331622840,1720585893527,-500.0,0.00013863,2]
[331622841,1720585893536,-1036.69,0.00013863,2]
[331622842,1720585893545,-2173.1,0.00013863,2]
[331622843,1720585893555,-616.7,0.00013863,2]
[331622844,1720585893564,-1035.15,0.00013863,2]
[331622845,1720585893574,-1399.95,0.00013863,2]
[331622846,1720585893584,-1755.14,0.00013863,2]
[331622847,1720585893594,-1326.84,0.00013863,2]
[331622848,1720585893604,-1610.08,0.00013863,2]
[331622849,1720585893613,-500.0,0.00013863,2]
[331622850,1720585893623,-500.0,0.00013863,2]
[331622851,1720585893634,-499.39593817,0.00013863,2]
[331622852,1720585893644,-821.93,0.00013863,2]
[331622853,1720585893654,-500.0,0.00013863,2]
[331622854,1720585893664,-500.0,0.00013863,2]
[331622855,1720585893673,-1053.79,0.00013863,2]
[331622856,1720585893684,-500.0,0.00013863,2]
[331622857,1720585893694,-725.4,0.00013863,2]
[331622858,1720585893704,-1747.16,0.00013863,2]
[331622859,1720585893714,-1819.82,0.00013863,2]
[331622860,1720585893724,-1647.96,0.00013863,2]
[331622861,1720585893738,-500.0,0.00013863,2]
[331622862,1720585893748,-500.0,0.00013863,2]
[331622863,1720585893760,-500.0,0.00013863,2]
[331622864,1720585893769,-1162.41,0.00013863,2]
[331622865,1720585893779,-1523.35,0.00013863,2]
[331622866,1720585893789,-6812.75,0.00013863,2]
[331622867,1720585893798,-2422.43,0.00013863,2]
[331622868,1720585893808,-524.02,0.00013863,2]
[331622869,1720585893818,-500.0,0.00013863,2]
[331622870,1720585893828,-602.05593029,0.00013863,2]
[331622871,1720585893838,-500.0,0.00013863,2]
[331622872,1720585893848,-500.0,0.00013863,2]
[331622873,1720585893857,-500.0,0.00013863,2]
[331622874,1720585893867,-500.0,0.00013863,2]
[331622875,1720585893877,-500.0,0.00013863,2]
[331622876,1720585893887,-859.46,0.00013863,2]
[331622877,1720585893897,-1832.2,0.00013863,2]
[331622878,1720585893909,-2330.7,0.00013863,2]
[331622879,1720585893920,-2468.37,0.00013863,2]
[331622880,1720585893931,-1199.8,0.00013863,2]
[331622881,1720585893941,-1104.2,0.00013863,2]
[331622882,1720585893951,-500.0,0.00013863,2]
[331622883,1720585893961,-811.35,0.00013863,2]
[331622884,1720585893970,-500.0,0.00013863,2]
[331622885,1720585893982,-500.0,0.00013863,2]
[331622886,1720585893991,-2165.33,0.00013863,2]
[331622887,1720585894001,-4331.32,0.00013863,2]
[331622888,1720585894011,-2646.6,0.00013863,2]
[331622889,1720585894021,-967.9,0.00013863,2]
[331622890,1720585894030,-500.0,0.00013863,2]
[331622891,1720585894040,-500.0,0.00013863,2]
[331622892,1720585894050,-704.3,0.00013863,2]
[331622893,1720585894059,-525.27,0.00013863,2]
[331622894,1720585894069,-1332.13,0.00013863,2]
[331622895,1720585894078,-582.47,0.00013863,2]
[331622896,1720585894088,-898.93,0.00013863,2]
[331622897,1720585894098,-1996.06,0.00013863,2]
[331622898,1720585894108,-500.0,0.00013863,2]
[331622899,1720585894118,-3281.86,0.00013863,2]
[331622900,1720585894129,-500.0,0.00013863,2]
[331622901,1720585894138,-172.3972355,0.00013863,2]
[331622902,1720585894148,-1972.17,0.00013863,2]
[331622903,1720585894158,-151.0,0.00013863,2]
[331622904,1720585894168,-151.0,0.00013863,2]
[331622905,1720585894178,-151.0,0.00013863,2]
[331622906,1720585894188,-924.63,0.00013863,2]
[331622907,1720585894199,-964.12,0.00013863,2]
[331622908,1720585894209,-500.0,0.00013863,2]
[331622909,1720585894219,-500.0,0.00013863,2]
[331622910,1720585894228,-500.0,0.00013863,2]
[331622911,1720585894240,-500.0,0.00013863,2]
[331622912,1720585894249,-801.39,0.00013863,2]
[331622913,1720585894259,-1630.31,0.00013863,2]
[331622914,1720585894268,-1280.27,0.00013863,2]
[331622915,1720585894277,-2864.06,0.00013863,2]
[331622916,1720585894286,-500.0,0.00013863,2]
[331622917,1720585894296,-2041.74,0.00013863,2]
[331622918,1720585894306,-500.0,0.00013863,2]
[331622919,1720585894315,-500.0,0.00013863,2]
[331622920,1720585894325,-861.68,0.00013863,2]
[331622921,1720585894334,-992.21,0.00013863,2]
[331622922,1720585894343,-471.06134516,0.00013863,2]
[331622923,1720585894352,-500.0,0.00013863,2]
[331622924,1720585894363,-343.07461692,0.00013865,2]
[331622925,1720585894372,-150.1777291,0.00013865,2]
[331622926,1720585894381,-150.0,0.00013873,2]
[331622927,1720585894391,-343.07461692,0.00013878,2]
[331622928,1720585894400,-150.1777291,0.00013878,2]
[331622929,1720585894410,-617853.34360524,0.0001388,2]
[331622930,1720585894420,-178.571732,0.0001388,2]
[331622931,1720585894429,-178.571732,0.0001388,2]
[331622932,1720585894439,-165.122692,0.0001388,2]
[331622933,1720585894449,-151.0,0.0001388,2]
[331622934,1720585894458,-151.0,0.0001388,2]
[331622935,1720585894467,-151.0,0.0001388,2]
[331622936,1720585894477,-338.727915,0.0001388,2]
[331622937,1720585894488,-151.0,0.0001388,2]
[331622938,1720585894498,-700.0,0.00013885,2]
[331622939,1720585894509,-150.0,0.00013886,2]
[331622940,1720585894518,-150.0,0.0001389,2]
[331622941,1720585894527,-343.07461692,0.00013891,2]
[331622942,1720585894537,-150.1777291,0.00013891,2]
[331622943,1720585894547,-150.0,0.000139,2]
[331622944,1720585894557,-240422.59523227,0.000139,2]
[331622945,1720585894567,-166.28291186,0.000139,2]
[331622946,1720585894576,-1000.0,0.000139,2]
[331622947,1720585894586,-225.0,0.000139,2]
[331622948,1720585894596,-170.81539734,0.000139,2]
[331622949,1720585894605,-343.07461692,0.00013903,2]
[331622950,1720585894615,-150.1777291,0.00013903,2]
[331622951,1720585894625,-1255.567,0.00013911,2]
[331622952,1720585894636,-302.872,0.00013911,2]
[331622953,1720585894646,-291.172,0.00013911,2]
[331622954,1720585894656,-150.0,0.00013913,2]
[331622955,1720585894666,-343.07461692,0.00013916,2]
[331622956,1720585894676,-150.1777291,0.00013916,2]
[331622957,1720585894686,-4683.44,0.00013917,2]
[331622958,1720585894695,-500.0,0.00013917,2]
[331622959,1720585894704,-500.0,0.00013917,2]
[331622960,1720585894713,-500.0,0.00013917,2]
[331622961,1720585894723,-500.0,0.00013917,2]
[331622962,1720585894834,-500.0,0.00013917,2]
[331622963,1720585894844,-500.0,0.00013917,2]
[331622964,1720585894853,-163.69633873,0.00013917,2]
[331622965,1720585894863,-500.0,0.00013917,2]
[331622966,1720585894873,-375.28119881,0.00013917,2]
[331622967,1720585894882,-500.0,0.00013917,2]
[331622968,1720585894891,-500.0,0.00013917,2]
[331622969,1720585894901,-500.0,0.00013917,2]
[331622970,1720585894910,-500.0,0.00013917,2]
[331622971,1720585894919,-500.0,0.00013917,2]
[331622972,1720585894928,-500.0,0.00013917,2]
[331622973,1720585894938,-500.0,0.00013917,2]
[331622974,1720585894947,-500.0,0.00013917,2]
[331622975,1720585894956,-500.0,0.00013917,2]
[331622976,1720585894965,-500.0,0.00013917,2]
[331622977,1720585894974,-500.0,0.00013917,2]
[331622978,1720585894995,-891.21,0.00013917,2]
[331622979,1720585895004,-2448.37,0.00013917,2]
[331622980,1720585895013,-500.0,0.00013917,2]
[331622981,1720585895023,-668.8,0.00013917,2]
[331622982,1720585895032,-337.21734642,0.00013917,2]
[331622983,1720585895041,-500.0,0.00013917,2]
[331622984,1720585895050,-558.15,0.00013917,2]
[331622985,1720585895059,-1645.83,0.00013917,2]
[331622986,1720585895069,-1091.94,0.00013917,2]
[331622987,1720585895077,-690.09,0.00013917,2]
[331622988,1720585895087,-200.0,0.00013917,2]
[331622989,1720585895098,-586.04,0.00013917,2]
[331622990,1720585895108,-1971.47,0.00013917,2]
[331622991,1720585895118,-500.0,0.00013917,2]
[331622992,1720585895128,-905.56,0.00013917,2]
[331622993,1720585895137,-1576.43,0.00013917,2]
[331622994,1720585895147,-500.0,0.00013917,2]
[331622995,1720585895157,-1742.21,0.00013917,2]
[331622996,1720585895167,-1898.95,0.00013917,2]
[331622997,1720585895178,-625.6,0.00013917,2]
[331622998,1720585895188,-725.95,0.00013917,2]
[331622999,1720585895198,-607.2,0.00013917,2]
[331623000,1720585895207,-500.0,0.00013917,2]
[331623001,1720585895217,-500.0,0.00013917,2]
[331623002,1720585895226,-1704.78,0.00013917,2]
[331623003,1720585895244,-579.62,0.00013917,2]
[331623004,1720585895253,-500.0,0.00013917,2]
[331623005,1720585895262,-804.68,0.00013917,2]
[331623006,1720585895274,-1941.95,0.00013917,2]
[331623007,1720585895283,-1093.94,0.00013917,2]
[331623008,1720585895293,-500.0,0.00013917,2]
[331623009,1720585895302,-500.0,0.00013917,2]
[331623010,1720585895312,-897.12,0.00013917,2]
[331623011,1720585895321,-605.18,0.00013917,2]
[331623012,1720585895330,-500.0,0.00013917,2]
[331623013,1720585895339,-500.0,0.00013917,2]
[331623014,1720585895349,-500.0,0.00013917,2]
[331623015,1720585895358,-500.0,0.00013917,2]
[331623016,1720585895367,-656.85,0.00013917,2]
[331623017,1720585895376,-500.0,0.00013917,2]
[331623018,1720585895385,-500.0,0.00013917,2]
[331623019,1720585895394,-582.50650311,0.00013917,2]
[331623020,1720585895405,-2057.73,0.00013917,2]
[331623021,1720585895414,-500.0,0.00013917,2]
[331623022,1720585895423,-500.0,0.00013917,2]
[331623023,1720585895433,-500.0,0.00013917,2]
[331623024,1720585895442,-823.29,0.00013917,2]
[331623025,1720585895452,-500.0,0.00013917,2]
[331623026,1720585895461,-574.88,0.00013917,2]
[331623027,1720585895472,-500.0,0.00013917,2]
[331623028,1720585895487,-500.0,0.00013917,2]
[331623029,1720585895496,-591.95,0.00013917,2]
[331623030,1720585895506,-500.0,0.00013917,2]
[331623031,1720585895515,-955.81,0.00013917,2]
[331623032,1720585895524,-500.0,0.00013917,2]
[331623033,1720585895534,-500.0,0.00013917,2]
[331623034,1720585895543,-1609.93,0.00013917,2]
[331623035,1720585895552,-881.57,0.00013917,2]
[331623036,1720585895562,-769.36,0.00013917,2]
[331623037,1720585895571,-1502.36,0.00013917,2]
[331623038,1720585895580,-500.0,0.00013917,2]
[331623039,1720585895589,-500.0,0.00013917,2]
[331623040,1720585895599,-1140.23,0.00013917,2]
[331623041,1720585895608,-500.0,0.00013917,2]
[331623042,1720585895617,-500.0,0.00013917,2]
[331623043,1720585895626,-1317.89,0.00013917,2]
[331623044,1720585895638,-500.0,0.00013917,2]
[331623045,1720585895648,-500.0,0.00013917,2]
[331623046,1720585895657,-598.9,0.00013917,2]
[331623047,1720585895667,-500.0,0.00013917,2]
[331623048,1720585895676,-582.94,0.00013917,2]
[331623049,1720585895685,-974.55,0.00013917,2]
[331623050,1720585895695,-664.53,0.00013917,2]
[331623051,1720585895704,-577.31,0.00013917,2]
[331623052,1720585895714,-500.0,0.00013917,2]
[331623053,1720585895722,-533.52,0.00013917,2]
[331623054,1720585895735,-511.19,0.00013917,2]
[331623055,1720585895744,-790.55,0.00013917,2]
[331623056,1720585895753,-1568.25,0.00013917,2]
[331623057,1720585895762,-500.0,0.00013917,2]
[331623058,1720585895771,-500.0,0.00013917,2]
[331623059,1720585895780,-651.92,0.00013917,2]
[331623060,1720585895789,-500.0,0.00013917,2]
[331623061,1720585895798,-763.64,0.00013917,2]
[331623062,1720585895807,-500.0,0.00013917,2]
[331623063,1720585895815,-500.0,0.00013917,2]
[331623064,1720585895824,-1714.55,0.00013917,2]
[331623065,1720585895833,-535.96,0.00013917,2]
[331623066,1720585895842,-600.5,0.00013917,2]
[331623067,1720585895851,-784.46,0.00013917,2]
[331623068,1720585895860,-500.0,0.00013917,2]
[331623069,1720585895869,-500.0,0.00013917,2]
[331623070,1720585895879,-500.0,0.00013917,2]
[331623071,1720585895889,-500.0,0.00013917,2]
[331623072,1720585895898,-674.26,0.00013917,2]
[331623073,1720585895907,-500.0,0.00013917,2]
[331623074,1720585895916,-500.0,0.00013917,2]
[331623075,1720585895925,-500.0,0.00013917,2]
[331623076,1720585895933,-953.74,0.00013917,2]
[331623077,1720585895942,-2242.83,0.00013917,2]
[331623078,1720585895951,-573.82,0.00013917,2]
[331623079,1720585895960,-500.0,0.00013917,2]
[331623080,1720585895969,-2164.72,0.00013917,2]
[331623081,1720585895978,-500.0,0.00013917,2]
[331623082,1720585895988,-500.0,0.00013917,2]
[331623083,1720585895997,-982.47,0.00013917,2]
[331623084,1720585896008,-500.0,0.00013917,2]
[331623085,1720585896017,-1477.67,0.00013917,2]
[331623086,1720585896026,-500.0,0.00013917,2]
[331623087,1720585896034,-500.0,0.00013917,2]
[331623088,1720585896043,-1781.26,0.00013917,2]
[331623089,1720585896052,-1330.76,0.00013917,2]
[331623090,1720585896061,-846.15,0.00013917,2]
[331623091,1720585896070,-500.0,0.00013917,2]
[331623092,1720585896079,-948.26,0.00013917,2]
[331623093,1720585896088,-704.71,0.00013917,2]
[331623094,1720585896097,-596.24,0.00013917,2]
[331623095,1720585896106,-182.34,0.00013917,2]
[331623096,1720585896115,-500.0,0.00013917,2]
[331623097,1720585896124,-827.94,0.00013917,2]
[331623098,1720585896133,-500.0,0.00013917,2]
[331623099,1720585896142,-566.1,0.00013917,2]
[331623100,1720585896152,-652.93,0.00013917,2]
[331623101,1720585896161,-500.0,0.00013917,2]
[331623102,1720585896171,-500.0,0.00013917,2]
[331623103,1720585896180,-500.0,0.00013917,2]
[331623104,1720585896190,-1514.56,0.00013917,2]
[331623105,1720585896199,-872.09,0.00013917,2]
[331623106,1720585896211,-237.86116157,0.00013917,2]
[331623107,1720585896220,-500.0,0.00013917,2]
[331623108,1720585896228,-500.0,0.00013917,2]
[331623109,1720585896241,-878.74,0.00013917,2]
[331623110,1720585896251,-500.0,0.00013917,2]
[331623111,1720585896259,-500.0,0.00013917,2]
[331623112,1720585896268,-1237.24,0.00013917,2]
[331623113,1720585896277,-544.06,0.00013917,2]
[331623114,1720585896286,-500.0,0.00013917,2]
[331623115,1720585896295,-500.0,0.00013917,2]
[331623116,1720585896304,-500.0,0.00013917,2]
[331623117,1720585896314,-500.0,0.00013917,2]
[331623118,1720585896325,-660.1,0.00013917,2]
[331623119,1720585896334,-936.62,0.00013917,2]
[331623120,1720585896343,-806.83,0.00013917,2]
[331623121,1720585896352,-500.0,0.00013917,2]
[331623122,1720585896363,-500.0,0.00013917,2]
[331623123,1720585896372,-2500.0,0.00013917,3]
[331623124,1720585896381,-500.0,0.00013917,2]
[331623125,1720585896390,-500.0,0.00013917,2]
[331623126,1720585896400,-500.0,0.00013917,2]
[331623127,1720585896409,-914.98,0.00013917,2]
[331623128,1720585896419,-868.93,0.00013917,2]
[331623129,1720585896429,-1075.48,0.00013917,2]
[331623130,1720585896439,-500.0,0.00013917,2]
[331623131,1720585896448,-844.73,0.00013917,2]
[331623132,1720585896459,-917.11,0.00013917,2]
[331623133,1720585896468,-581.45,0.00013917,2]
[331623134,1720585896477,-779.98,0.00013917,2]
[331623135,1720585896489,-500.0,0.00013917,2]
[331623136,1720585896499,-500.0,0.00013917,2]
[331623137,1720585896508,-1175.87,0.00013917,2]
[331623138,1720585896518,-1610.97,0.00013917,2]
[331623139,1720585896527,-1032.41,0.00013917,2]
[331623140,1720585896537,-2534.44,0.00013917,2]
[331623141,1720585896546,-500.0,0.00013917,2]
[331623142,1720585896555,-729.64,0.00013917,2]
[331623143,1720585896565,-500.0,0.00013917,2]
[331623144,1720585896575,-1195.78,0.00013917,2]
[331623145,1720585896583,-500.0,0.00013917,2]
[331623146,1720585896593,-719.58,0.00013917,2]
[331623147,1720585896601,-500.0,0.00013917,2]
[331623148,1720585896611,-500.0,0.00013917,2]
[331623149,1720585896620,-1370.82,0.00013917,2]
[331623150,1720585896629,-971.46,0.00013917,2]
[331623151,1720585896639,-500.0,0.00013917,2]
[331623152,1720585896649,-500.0,0.00013917,2]
[331623153,1720585896658,-425.3261513,0.00013917,2]
[331623154,1720585896667,-500.0,0.00013917,2]
[331623155,1720585896676,-500.0,0.00013917,2]
[331623156,1720585896686,-500.0,0.00013917,2]
[331623157,1720585896695,-500.0,0.00013917,2]
[331623158,1720585896705,-500.0,0.00013917,2]
[331623159,1720585896714,-500.0,0.00013917,2]
[331623160,1720585896723,-1431.47,0.00013917,2]
[331623161,1720585896735,-611.27,0.00013917,2]
[331623162,1720585896745,-1353.9,0.00013917,2]
[331623163,1720585896754,-697.06,0.00013917,2]
[331623164,1720585896763,-1951.99,0.00013917,2]
[331623165,1720585896772,-500.0,0.00013917,2]
[331623166,1720585896781,-500.0,0.00013917,2]
[331623167,1720585896790,-500.0,0.00013917,2]
[331623168,1720585896799,-500.0,0.00013917,2]
[331623169,1720585896808,-178.571732,0.00013917,2]
[331623170,1720585896817,-178.571732,0.00013917,2]
[331623171,1720585896826,-641.04,0.00013917,2]
[331623172,1720585896835,-800.22,0.00013917,2]
[331623173,1720585896844,-771.77,0.00013917,2]
[331623174,1720585896853,-500.0,0.00013917,2]
[331623175,1720585896864,-500.0,0.00013917,2]
[331623176,1720585896873,-1096.31,0.00013917,2]
[331623177,1720585896883,-500.0,0.00013917,2]
[331623178,1720585896892,-178.571732,0.00013917,2]
[331623179,1720585896901,-178.571742,0.00013917,2]
[331623180,1720585896911,-555.09,0.00013917,2]
[331623181,1720585896920,-500.0,0.00013917,2]
[331623182,1720585896930,-567.91,0.00013917,2]
[331623183,1720585896940,-1046.7,0.00013917,2]
[331623184,1720585896950,-617.05,0.00013917,2]
[331623185,1720585896960,-1093.83,0.00013917,2]
[331623186,1720585896970,-570.9,0.00013917,2]
[331623187,1720585896982,-500.0,0.00013917,2]
[331623188,1720585896991,-500.0,0.00013917,2]
[331623189,1720585897001,-802.13,0.00013917,2]
[331623190,1720585897010,-539.46,0.00013917,2]
[331623191,1720585897019,-658.46,0.00013917,2]
[331623192,1720585897028,-500.0,0.00013917,2]
[331623193,1720585897038,-1718.62,0.00013917,2]
[331623194,1720585897047,-500.0,0.00013917,2]